Cogmind - Beta 13 *** ADVENTURER MODE // 2024.05.08 @ 13:10:37 Player: kiesta07 Result: Destroyed by H-61 Shepherd with Heavy Assault Cannon Performance ------------- Evolutions (3) 1500 Regions Visited (4) 800 Robots Destroyed (47) 235 Value Destroyed (1339) 1339 Prototype IDs (3) 60 Alien Tech Used (0) 0 Bonus (130) 130 TOTAL SCORE: 4064 Bonus ------- Follower Combat Kills 130 Cogmind --------- Core Integrity 0/700 Matter 34/300 Energy 98/100 System Corruption 2% Temperature Cool (0) Movement Core (50) Location -7/Factory Parts ------- > --- POWER (2) -------- (None) > --- PROPULSION (6) --- (None) > --- UTILITY (2) ------ (None) > --- WEAPON (3) ------- (None) > --- INVENTORY (5) ---- (None) Peak State ------------ > --- POWER ------------ Nuclear Core > --- PROPULSION ------- VTOL Module VTOL Module VTOL Module Cooled VTOL Module > --- UTILITY ---------- (None) > --- WEAPON ----------- Precision Shock Rifle Heavy Rocket Launcher Spear > --- INVENTORY -------- (None) [Rating: 27] Favorites ----------- Power Light Ion Engine Engine Light Ion Engine Power Core Nuclear Core Propulsion Flight Unit Leg Carbon-fiber Leg Wheel Wheel Hover Unit Backup Propulsion I Flight Unit Flight Unit Utility Backup Plating I Device Heat Sink Protection Backup Plating I Weapon Beam Rifle Energy Gun Beam Rifle Ballistic Gun Assault Rifle Ballistic Cannon Advanced Assault Cannon Launcher Heavy Rocket Launcher Piercing Weapon Spear Build | -11 -10 -9 -8 -7 ------- Run | Yrd Mat Mat Mat Fac Slots Evolved 6 | . . 2 2 2 Power 1 | . . . . 1 Propulsion 4 | . . 2 1 1 Utility . | . . . . . Weapon 1 | . . . 1 . Parts Attached 45 | 9 6 10 4 16 Power 17 | 5 3 1 1 7 Engine 14 | 5 3 1 1 4 Core 3 | . . . . 3 Reactor . | . . . . . Propulsion 15 | 2 2 3 3 5 Treads . | . . . . . Leg 1 | . . . . 1 Wheel 2 | 2 . . . . Hover . | . . . . . Flight 12 | . 2 3 3 4 Utility 1 | . . 1 . . Device 1 | . . 1 . . Storage . | . . . . . Processor . | . . . . . Hackware . | . . . . . Protection . | . . . . . Artifact . | . . . . . Weapon 12 | 2 1 5 . 4 Energy Gun 7 | 1 . 5 . 1 Energy Cannon . | . . . . . Ballistic Gun 2 | 1 1 . . . Ballistic Cannon 1 | . . . . 1 Launcher 1 | . . . . 1 Special Weapon . | . . . . . Impact Weapon . | . . . . . Slashing Weapon . | . . . . . Piercing Weapon 1 | . . . . 1 Special Melee Weapon . | . . . . . Unidentified Prototypes 3 | . . 1 . 2 Parts Lost 26 | . 1 10 2 13 Power 6 | . . 1 1 4 Propulsion 10 | . . 3 1 6 Utility 3 | . . 3 . . Weapon 7 | . 1 3 . 3 Highest Loss Streak 8 | . 1 8 1 3 To Critical Strikes . | . . . . . Average Slot Usage (%) 48 | . 69 57 39 36 Engine 8 | . 14 9 8 5 Wheel 5 | . 26 . . . Flight 13 | . 1 18 12 15 Protection 2 | . . 9 . . Energy Gun 9 | . 12 13 17 3 Ballistic Gun 4 | . 14 5 . . Piercing Weapon 2 | . . . . 6 Naked Turns 3 | . . . . 3 Heaviest Build 16 | 7 7 9 11 16 Greatest Support 20 | 20 20 8 12 17 Greatest Overweight (x) 3 | 2 . 2 3 2 Average Overweight (x) . | . . . . . Largest Inventory Capacity 5 | 5 5 5 5 5 Average Capacity 5 | 5 5 5 5 5 Most Carried 4 | 4 3 2 1 3 Average Carried . | 1 1 . . . Final Capacity 5 | 5 5 5 5 5 Final Carried 1 | 1 1 . . . Class Distribution -------------------- 79% | Mutant 12% | Scavenger-Mutant 8% | Sprinter Dominant Class ---------------- Mutant | -10/Materials Mutant | -9/Materials Mutant | -8/Materials Mutant | -7/Factory Resources | -11 -10 -9 -8 -7 ----------- Run | Yrd Mat Mat Mat Fac Matter Collected 671 | 268 182 72 55 94 Remotely . | . . . . . Salvage Created 1482 | 38 311 548 145 440 Parts 87 | 3 21 34 13 16 Haulers Intercepted 1 | . . . . 1 Recyclers Shooed 3 | . 2 . . 1 Parts Field Recycled . | . . . . . Retrieved Matter . | . . . . . Parts Self-Destructed . | . . . . . Prevented . | . . . . . Kills | -11 -10 -9 -8 -7 ------- Run | Yrd Mat Mat Mat Fac Combat Hostiles Destroyed 36 | 1 7 11 5 12 Melee 2 | . . . . 2 Guns 23 | 1 5 11 4 2 Cannons 5 | . . . . 5 AOE 4 | . 2 . . 2 Classes Destroyed 10 | 1 3 2 . 4 Worker 2 | . 2 . . . Tunneler 1 | . . . . 1 Hauler 1 | . . . . 1 Recycler 1 | . . 1 . . Watcher 6 | . 3 2 1 . Swarmer 12 | . 3 3 4 2 Grunt 14 | 1 4 3 . 6 Protector 1 | . . . . 1 Sentry 7 | . . 5 1 1 Programmer 2 | . . . . 2 Best Kill Streak 8 | 1 7 8 4 5 Combat Bots Only 7 | 1 2 7 4 5 Max Kills in Single Turn 3 | 1 2 2 1 3 Gunslinging 1 | . . 1 . . Exploded 1 | . 1 . . 1 Melee 1 | . . . . 1 Uniques/NPCs Destroyed . | . . . . . Combat | -11 -10 -9 -8 -7 -------- Run | Yrd Mat Mat Mat Fac Hostile Shots Fired 403 | 2 51 130 33 187 Missed 145 | 1 21 39 14 70 Damage Taken 2734 | 8 211 873 165 1477 Core 1152 | . 58 334 47 713 Absorbed by Shields 44 | . . . . 44 Ignored by Resistances 821 | 3 71 251 52 444 Regen/Repaired (Parts) 6 | . . 6 . . Core Remaining (%) 70 | 100 76 16 91 . Volleys Fired 153 | 2 33 50 18 50 Largest 2 | 2 2 2 2 1 Hottest 121 | 60 60 112 121 56 Shots Fired 203 | 4 52 70 27 50 Gun 173 | 4 52 70 27 20 Cannon 21 | . . . . 21 Launcher 9 | . . . . 9 Special . | . . . . . Kinetic 76 | 2 33 20 . 21 Thermal 80 | . . 33 27 20 Explosive 9 | . . . . 9 Electromagnetic 38 | 2 19 17 . . Robot Hit Streak 38 | 1 9 26 11 38 Robot Miss Streak 2 | 1 2 2 2 1 Penetration Max . | . . . . . Secondary Targets 2 | . . 1 1 . Max Gunslinging Chain 1 | . . 1 1 . Shots Hit Robots 160 | 2 37 54 20 47 Core Hits 73 | 1 18 23 7 24 Critical Kills . | . . . . . Critical Parts Destroyed 1 | . 1 . . . Critical Strikes 8 | . 1 3 1 3 Burn 6 | . . 3 1 2 Destroy 1 | . 1 . . . Blast 1 | . . . . 1 Melee Attacks 4 | . . . . 4 Impact . | . . . . . Slashing . | . . . . . Piercing 4 | . . . . 4 Sneak Attacks . | . . . . . Combat Hostiles . | . . . . . Follow-up Attacks . | . . . . . Damage Inflicted 3157 | 28 698 776 323 1332 Guns 1858 | 28 493 769 323 245 Cannons 537 | . . . . 537 Explosions 677 | . 205 . . 472 Melee 78 | . . . . 78 Ramming 7 | . . 7 . . Kinetic 920 | 28 256 99 . 537 Thermal 1198 | . 205 425 323 245 Explosive 472 | . . . . 472 Electromagnetic 482 | . 237 245 . . Impact . | . . . . . Slashing . | . . . . . Piercing 78 | . . . . 78 Highest Corruption 2 | . . . . 2 Average Corruption 1 | . . . . 1 Corruption Purged . | . . . . . Corruption Blocked . | . . . . . Effects 4 | . . . . 4 Matter Fused 1 | . . . . 1 Energy Discharges 1 | . . . . 1 Misfires 1 | . . . . 1 Weapon Failures 1 | . . . . 1 Overload Shots . | . . . . . Overflow Damage 17 | . . . . 17 Projectiles . | . . . . . Explosions 17 | . . . . 17 Melee . | . . . . . Knockbacks 2 | . . . . 2 Impact . | . . . . . Kinetic 1 | . . . . 1 Secondary 1 | . . . . 1 Self-Inflicted Damage 54 | . . 3 . 51 Shots 2 | . . . . 2 Rammed 3 | . . 3 . . Targets Rammed 3 | . . 3 . . Kicked . | . . . . . Crushed . | . . . . . Highest Temperature 171 | 6 45 131 171 98 Average Temperature 46 | 6 24 40 78 33 Received Heat Transfer 789 | 6 57 315 45 366 Siege Activations . | . . . . . Robots Corrupted . | . . . . . Combat Hostiles . | . . . . . Parts Fried . | . . . . . Impact Corruptions . | . . . . . Robots Melted 2 | . . . 1 1 Combat Hostiles 2 | . . . 1 1 Parts Melted 11 | . 2 4 2 3 Heat Transferred 3249 | . 400 1184 888 777 Parts Sabotaged . | . . . . . Parts Stolen . | . . . . . Parts Stripped . | . . . . . Power Chain Reactions 3 | . 3 . . . Alert | -11 -10 -9 -8 -7 ------- Run | Yrd Mat Mat Mat Fac Peak Influence 293 | 20 139 293 211 252 Initial 81 | . 11 44 42 81 Average 93 | 7 59 123 91 101 Maximum Alert Level 1 | . . 1 1 1 Low Security (%) 94 | 100 100 94 94 90 Level 1 5 | . . 5 5 9 Level 2 . | . . . . . Level 3 . | . . . . . Level 4 . | . . . . . Level 5 . | . . . . . High Security . | . . . . . Max Security . | . . . . . Squads Dispatched 6 | . . 2 . 4 Investigation . | . . . . . Extermination 2 | . . . . 2 Reinforcement 4 | . . 2 . 2 Assault . | . . . . . Garrison . | . . . . . Intercept . | . . . . . Searches Triggered . | . . . . . Construction Impeded . | . . . . . Haulers Reinforced . | . . . . . Active Scanning Responses . | . . . . . Cargo Convoy Interrupts 1 | . . . . 1 Stealth | -11 -10 -9 -8 -7 --------- Run | Yrd Mat Mat Mat Fac Distress Signals 3 | . . 1 . 2 Communications Jammed . | . . . . . Distress Signals . | . . . . . Times Spotted 61 | 1 11 15 11 23 Peak Tracking Total 9 | 1 4 9 5 7 Tactical Retreats 2 | . . . 1 1 Traps | -11 -10 -9 -8 -7 ------- Run | Yrd Mat Mat Mat Fac Traps Triggered 9 | . . 1 1 7 Indirectly . | . . . . . Trap Hack Attempts . | . . . . . Triggered . | . . . . . Disarmed . | . . . . . Reprogrammed 6 | . . 6 . . Reused . | . . . . . Traps Extracted . | . . . . . Installed . | . . . . . Triggered 2 | . . . . 2 Machines | -11 -10 -9 -8 -7 ---------- Run | Yrd Mat Mat Mat Fac Machines Disabled . | . . . . . Max in Single Turn . | . . . . . Machines Repaired . | . . . . . Machines Dismantled . | . . . . . Machines Sabotaged . | . . . . . Overloaded Fab Kills . | . . . . . Hacking | -11 -10 -9 -8 -7 --------- Run | Yrd Mat Mat Mat Fac Machines Accessed 4 | . 1 2 . 1 Terminals 3 | . 1 1 . 1 Fabricators . | . . . . . Repair Stations 1 | . . 1 . . Recycling Units . | . . . . . Scanalyzers . | . . . . . Garrison Access . | . . . . . Total Hacks 9 | . 3 5 . 1 Successful 8 | . 2 5 . 1 Failed 1 | . 1 . . . Catastrophic . | . . . . . Database Lockouts . | . . . . . Manual . | . . . . . Terminals 6 | . 3 2 . 1 Fabricators . | . . . . . Repair Stations 3 | . . 3 . . Recycling Units . | . . . . . Scanalyzers . | . . . . . Garrison Access . | . . . . . Terminal Hacks 5 | . 2 2 . 1 Record 2 | . 2 . . . Open DSF 1 | . . . . 1 Alert Level 1 | . . 1 . . Reprogram Traps 1 | . . 1 . . Fabricator Hacks . | . . . . . Repair Station Hacks 3 | . . 3 . . Scan Component 1 | . . 1 . . Repair 1 | . . 1 . . Refit 1 | . . 1 . . Recycling Unit Hacks . | . . . . . Scanalyzer . | . . . . . Garrison Access Hacks . | . . . . . Unauthorized Hacks . | . . . . . Terminals . | . . . . . Fabricators . | . . . . . Repair Stations . | . . . . . Recycling Units . | . . . . . Scanalyzers . | . . . . . Garrison Access . | . . . . . Data Cores Recovered . | . . . . . Used . | . . . . . Hacking Detections 4 | . 1 2 . 1 Full Trace Events . | . . . . . Feedback Events . | . . . . . Feedback Blocked . | . . . . . Robot Schematics Acquired . | . . . . . Robots Built . | . . . . . Authchips . | . . . . . Time . | . . . . . Total Robot Build Rating . | . . . . . Part Schematics Acquired . | . . . . . Parts Built . | . . . . . Authchips . | . . . . . Time . | . . . . . Total Part Build Rating . | . . . . . Parts Repaired 1 | . . 1 . . Time 26 | . . 26 . . Parts Recycled . | . . . . . Recycled Matter . | . . . . . Retrieved Matter . | . . . . . Retrieved Components . | . . . . . Parts Scanalyzed . | . . . . . Part Schematics Acquired . | . . . . . Parts Damaged . | . . . . . Bothacking | -11 -10 -9 -8 -7 ------------ Run | Yrd Mat Mat Mat Fac Used RIF Installer . | . . . . . Robots Hacked . | . . . . . Non-combat . | . . . . . Combat . | . . . . . Robot Hacks Applied . | . . . . . Relay Couplers Released . | . . . . . Fabnet Peak Effective % . | . . . . . Robots Rewired . | . . . . . Allies Hacked . | . . . . . Hacks Repelled . | . . . . . Allies | -11 -10 -9 -8 -7 -------- Run | Yrd Mat Mat Mat Fac Total Allies 3 | . . . . 3 Largest Group 3 | . . . . 3 Highest-Rated Group 93 | . . . . 93 Highest-Rated Ally 31 | . . . . 31 Total Orders . | . . . . . Ally Attacks 24 | . . . . 24 Total Damage 406 | . . . . 406 Kills 4 | . . . . 4 Allies Corrupted . | . . . . . Allies Melted . | . . . . . Intel | -11 -10 -9 -8 -7 ------- Run | Yrd Mat Mat Mat Fac Robot Analysis Total . | . . . . . Derelict Logs Recovered . | . . . . . Drone Launches . | . . . . . Drone Recoveries . | . . . . . Exploration | -11 -10 -9 -8 -7 ------------- Run | Yrd Mat Mat Mat Fac Turns Passed 2659 | 100 515 617 254 1173 Spaces Moved 2522 | 77 548 513 179 1205 Core 97 | 69 . 2 2 24 Treads . | . . . . . Legs 25 | . . . . 25 Wheels 500 | 8 492 . . . Hover 18 | . . 18 . . Flight 1882 | . 56 493 177 1156 Fastest Speed 26 | 50 37 37 34 26 Average Speed 83 | 90 75 93 111 78 Slowest Speed 200 | 150 80 200 200 200 Overloaded Moves . | . . . . . Propulsion Burnouts . | . . . . . Robots Hopped 1 | . . . 1 . Cave-ins Triggered . | . . . . . Exploration Rate (%) 30 | 8 50 39 21 32 Regions Visited 4 Branch Regions . Pre-discovered Areas . | . . . . . Known Exits Taken . | . . . . . Unknown Exits Taken 4 | 1 1 1 1 . Scrap Searched . | . . . . . Spaces Dug . | . . . . . Terrain Destroyed 79 | . 14 . . 65 Melee . | . . . . . Projectile . | . . . . . AOE 79 | . 14 . . 65 Terrain Rammed . | . . . . . Walls Destroyed . | . . . . . Machines Disabled . | . . . . . Actions | -11 -10 -9 -8 -7 --------- Run | Yrd Mat Mat Mat Fac Total 2869 | 101 595 585 204 1384 Wait 48 | 6 . . . 42 Move 2516 | 76 547 512 176 1205 Hop 1 | . . . 1 . Pick Up 39 | 7 5 8 4 15 Fast Attach . | . . . . . Attach 31 | 5 1 8 3 14 Detach . | . . . . . Swap 14 | 4 5 2 1 2 Drop 14 | 1 4 2 1 6 Fire 153 | 2 33 50 18 50 Melee 4 | . . . . 4 Ram 3 | . . 3 . . Kick . | . . . . . Crush . | . . . . . Escape Stasis 46 | . . . . 46 Rewire . | . . . . . Trap . | . . . . . Miscellaneous . | . . . . . Route ------- -11/Scrapyard -10/Materials -9/Materials -8/Materials -7/Factory (discovered 2 exits: [*Fac] / [*Sto]) History --------- Turn | Location | Event 2 | -11/Scrapyard | Met Revision 17 54 | -11/Scrapyard | Discovered new exit (range 8) 101 | -11/Scrapyard | Entered Materials 317 | -10/Materials | Build established: Mutant 516 | -10/Materials | Discovered new exit (range 15) 616 | -10/Materials | Entered another Materials area 616 | -9/Materials | Evolved 2 slots: Propulsion x2 709 | -9/Materials | Repaired Flight Unit 979 | -9/Materials | Core integrity fell below 50% 1000 | -9/Materials | Lost 8 parts (1p2n3u2w) 1021 | -9/Materials | Destroyed 7 combat bots 1158 | -9/Materials | Core integrity fell below 20% 1208 | -9/Materials | Discovered new exit (range 5) 1233 | -9/Materials | Entered another Materials area 1233 | -8/Materials | Evolved 2 slots: Propulsion x1, Weapon x1 1482 | -8/Materials | Discovered new exit (range 16) 1487 | -8/Materials | Entered Factory 1487 | -7/Factory | Evolved 2 slots: Power x1, Propulsion x1 2016 | -7/Factory | Allied Derelicts emerged from ambush trap array 2156 | -7/Factory | Cargo convoy interrupted 2547 | -7/Factory | Core integrity fell below 50% 2613 | -7/Factory | Lost 3 parts (1p2n) 2640 | -7/Factory | Discovered new exit (range 10) 2647 | -7/Factory | Discovered new exit (range 14) 2657 | -7/Factory | Core integrity fell below 20% 2660 | -7/Factory | Destroyed by H-61 Shepherd with Heavy Assault Cannon Last Messages --------------- Penetrated by Slug. Slug penetrates Door. [Achievement: Oops] Slug penetrates Wall. EXIT=FOUND Slug penetrates Wall. Penetrated by Slug. EXIT=FOUND Adv. Assault Cannon destroyed. Knocked back. Penetrated by Slug. Knocked back. Acquired 15 matter. Penetrated by Slug. Lgt. Ion Engine destroyed. Knocked back. Penetrated by Slug. Carbon-fiber Leg destroyed. Penetrated by Slug. Knocked back. Map ----- +----------------------------------------------------+ | ???????????????????????????????????????? | | ???????????????????????????????????????? | | ???????????????????????????????????????? | | ???????????????????????????????????????? | | ???????????????????????????????????????? | | ???????????????????????????????????????? | | ???????????????????????????????????????? | | ???????????????????????????????????????? | | ???????????????????????????????????????? | | ???????????????????????????????????????? | | ???????????????????????????????????????? | | ???????????????????????????????????????? | | ????????????????????? ????????????????? | | ?????????????????????< ????????????????? | | ????????????????????? ????????????????? | | ????????????????????? ????????????????? | | ????????????????????? "????????????????? | | ????????????????????? #????????????????? | | ????????????????????? #????????????????? | | ????????????????????#H#????????????????? | | ????????????????????# #????????????????? | | ????????????????????# #????????????????? | | ??????????????####### #????????????????? | | ??????????????# #????????????????? | | ??????????????#% % #????????????????? | | ??????????????#@ H H ################?? | | ?????????????## ;## #?? | | ?????????????#;% x x !!! #?? | | ?????????????## %#;### !!! #?? | | ??????????????# # #?# !!! #?? | | ??????????????# ;##?# %#?? | | ??????????????# ##??# #?? | | ??????????????# #???# #?? | | ??????????????+ #???# """""" #?? | | ??????????????" #???# """""" #?? | | ????????????? " #???# """""" #?? | | ???????????? # #???# """""" #?? | | ??????????? # ##??# #?? | | ??????????##### ;#??##+####"######## | | ????????????# # #????# | | ????????????# % #????# ###### | | ??????????????# #????#| #????? | | ??????????????# ######%[ #????? | | ??????????????# %%!% = ###??? | | ??????????????# %=%!= = ""#??? | | ??????????????# """"%*% !"" ""#??? | | ??????????????# """"""=% "F G#??? | | ??????????????# ""F ""% """ ""#??? | | ??????????????# """ % """ ""#??? | | ?????########## % % ###??? | +----------------------------------------------------+ Best States ------------- Heat Dissipation 38 Energy Generation 23 Energy Capacity 265 Matter Stores 300 Matter Capacity 300 Sight Range 16 Terrain Scan Density 10 Armor Coverage 160 Resistance: KI 20 Resistance: TH 20 Resistance: EX 20 Resistance: EM 20 Resistance: I 20 Resistance: S 20 Resistance: P 20 Evasion (%) 64 Offensive Hacking 10 Item Schematics ----------------- None Robot Schematics ------------------ None Fabricated ------------ Nothing Alien Tech Used ----------------- None Achievements -------------- Maybe Next Time I'll Detach My Launcher Oops Challenges ------------ None Game ------ Seed WeightGyrokineticFlail Manual? 0 Play Time 00:30:36 Cumulative 2.2 hours Start 2024.05.08 @ 12:40:49 End 2024.05.08 @ 13:10:37 Sessions 1 Manual Loads 0 Difficulty Adventurer Special Mode None Game No. 3 Rogue 0 Adventurer 3 Explorer 0 Win Type - Total 0 Types 0/0/0/0/0/0/0/0/0 Lore% 5 Gallery% 7 Achievement% 7 Wizard Run 0 Options --------- Layout 0 ASCII 0 Keyboard 0 Movement Arrows Keybinds 0 Fullscreen 2 Font 18/SmallcapsGlow Map View 76x50 Zoom Use 0% Tactical HUD 0 Map Filters NONE Filters NONE Steam 1 RUN: 73064da7-f05d-4b54-9d80-85f08aa8faff